[Event "USA Championship 2024"]
[Site "Saint Louis"]
[Date "2024.10.21"]
[Round "9.1"]
[White "Sevian, Samuel"]
[Black "Dominguez Perez, Leinier"]
[Result "0-1"]
[ECO "A33"]
[WhiteElo "2689"]
[BlackElo "2741"]
[Annotator "TA"]
[PlyCount "84"]
[EventDate "2024.10.09"]
[EventType "tourn"]
[EventCountry "USA"]
[SourceTitle "playchess.com"]
[Source "ChessBase"]
[SourceQuality "1"]
[TimeControl "40/5400+30:1800+30"]

{[%evp 17,84,0,8,9,0,0,5,2,9,0,0,0,0,0,0,0,0,0,0,0,0,0,160,27,128,75,131,76,328,298,321,312,300,286,329,175,145,38,44,0,0,-428,-421,-415,-413,-536,-516,-660,-654,-635,-631,-623,-592,-606,-552,-760,-704,-779,-486,-566,0,-775,-756,-29990,-29991,-29991,-29992,-29992,-29993]} 1. c4 {[%emt 0:00:04]} c5 {[%emt 0:00:24]} 2. Nf3 {[%emt 0:00:11]} Nf6 {[%emt 0:00:08]} 3. Nc3 {[%emt 0:00:21]} Nc6 {[%emt 0:00:07]} 4. d4 {[%emt 0:00:17]} cxd4 {[%emt 0:00:08]} 5. Nxd4 {[%emt 0:00:06]} e6 {[%emt 0:00:10]} 6. g3 {[%emt 0:00:14]} Qb6 {[%emt 0:00:40]} 7. Nb3 {[%emt 0:01:06]} Ne5 {[%emt 0:01:26]} 8. e4 {[%emt 0:00:55]} Bb4 {[%emt 0:00:10]} 9. Qe2 {[%emt 0:00:21]} d6 $1 {[%emt 0:00:22]} 10. Bd2 {[%emt 0:00:28]} a5 {[%emt 0:00:18]} 11. f4 {[%emt 0:01:18]} Nc6 {[%emt 0:00:26]} 12. Be3 {[%emt 0:00:47] The position is equal.} Qd8 {[%emt 0:00:50][%cal Oa5a4]} 13. Nd2 {[%emt 0:00:17]} O-O {[%emt 0:01:44]} 14. a3 {[%emt 0:00:12]} Bxc3 {[%emt 0:01:04]} 15. bxc3 {[%emt 0:00:07]} b6 {[%emt 0:01:42]} 16. Bg2 {[%emt 0:00:36][%cal Oe4e5] Threatens to win with e5!} Qc7 {[%emt 0:00:19]} 17. O-O {[%emt 0:02:25]} Ba6 {[%emt 0:00:58]} 18. g4 {[%emt 0:00:09]} Nd7 {[%emt 0:03:45]} 19. Rf3 {[%emt 0:00:09]} f5 $2 {[%emt 0:33:45]} (19... f6 $11) 20. Rh3 {[%emt 0:19:47]} (20. exf5 $1 $16 exf5 21. g5) 20... Nf6 {[%emt 0:18:08]} (20... fxg4 $1 $11 21. Qxg4 Rf6) 21. g5 {[%emt 0:05:23]} (21. exf5 $142 exf5 22. g5) 21... Ng4 {[%emt 0:03:09]} (21... Nxe4 $142 22. Nxe4 fxe4) 22. Kh1 {[%emt 0:21:46]} (22. exf5 $142 exf5 23. Re1) 22... d5 $2 {[%emt 0:06:01][%mdl 8192]} 23. exd5 {[%emt 0:14:49]} exd5 {[%emt 0:00:06]} 24. Bxd5+ {[%emt 0:00:03] A strong pair of Bishops.} Kh8 {[%emt 0:00:09]} 25. Rg1 {[%emt 0:09:55]} Ne7 {[%emt 0:09:06][%cal Bc6e7,Be7g6,Bg6f4][%mdl 32] ...Nxd5 is the strong threat.} 26. Bxa8 {[%emt 0:05:55]} (26. g6 $142 $1 {[%csl Gg6][%cal Rh3h7]} Nf6 (26... Nxd5 $2 27. Rxh7+ Kg8 28. Rxg4 $18) 27. Bxa8 Rxa8 28. Bd4 Bb7+ 29. Nf3) 26... Rxa8 $18 {[%emt 0:00:02]} 27. Bd4 {[%emt 0:00:59]} ({White should play} 27. Re1 $1 $16 {Hoping for Bd4.} Ng6 28. Bd4 Bb7+ 29. Kg1) 27... Bb7+ $1 $14 {[%emt 0:03:41]} 28. Nf3 {[%emt 0:00:21] aiming for Qe6.} (28. Rf3 $5 Ng6 29. Re1 $16) 28... Ng6 $1 {[%emt 0:00:39] Some like it hot} 29. Qe6 $2 {[%emt 0:00:15][%mdl 8192]} (29. Re1 $1 $11 {and White has nothing to worry.} Be4 (29... Nxf4 30. Qe8+ Rxe8 31. Rxe8#) 30. Qf1 Nxf4 31. Rxe4 fxe4 32. Rh4) 29... Nxf4 $19 {[%emt 0:07:43]} 30. Qxf5 {[%emt 0:02:29][%csl Gh3][%cal Rf5h7]} (30. Qxb6 $2 Qxb6 (30... Qxc4 $2 31. Qxb7 Qg8 32. Bxg7+ Qxg7 33. Qxa8+ $18) 31. Bxb6 Nxh3) 30... Nxh3 {[%emt 0:02:34][%csl Gg4][%cal Rc7h2]} 31. Rxg4 {[%emt 0:00:04] Black must now prevent Rh4.} Qe7 $1 {[%emt 0:01:26] ( -> ...Qe2)} (31... Qxc4 32. Bxg7+ (32. Bxb6 Qf1+ 33. Rg1 Bxf3+) 32... Kg8 33. Rxc4 Bxf3+ 34. Qxf3 Re8 35. Bh6 (35. Re4 Rd8 36. Bd4 Rf8 37. Qxh3 b5 38. Qe6+ Rf7 39. Rf4 h5 40. Qxf7#) 35... Re1+ 36. Kg2) 32. Rg3 {[%emt 0:10:36] [#]} Qe1+ $1 {[%emt 0:01:03]} 33. Kg2 {[%emt 0:00:18] [#]} Qe2+ $1 {[%emt 0:00:07]} 34. Kxh3 {[%emt 0:01:03]} Bc8 {[%emt 0:00:04]} (34... Qxc4 $2 {too greedy.} 35. Ne5 (35. Bxb6 $2 {is the wrong capture.} Bc8 $19) 35... Bc8 36. Nxc4 $18) 35. Qxc8+ {[%emt 0:00:49]} Rxc8 {[%emt 0:00:01]} 36. g6 {[%emt 0:00:06]} Rf8 {[%emt 0:02:55]} 37. Ne5 {[%emt 0:01:07]} Qh5+ {[%emt 0:00:25]} 38. Kg2 {[%emt 0:00:04]} Qe2+ {[%emt 0:00:04]} 39. Kh3 {[%emt 0:00:06]} Qf1+ {[%emt 0:00:32]} 40. Rg2 {[%emt 0:00:14]} Rf5 {[%emt 0:02:05] Black mates.} 41. Nf7+ {[%emt 0:31:13]} Kg8 {[%emt 0:30:38]} 42. gxh7+ {[%emt 0:00:06]} Kxh7 {[%emt 0:00:34] Weighted Error Value: White=0.74/Black=0.60.  Loses game:     	White=1     	Black=1      Mistake:       	White=5     	Black=3      Inaccurate:     	White=3     	---        OK:         	White=9     	Black=9      Best:        	White=2     	Black=2      Strong:       	---       	Black=4} 0-1

[Event "USA Championship 2024"]
[Site "Saint Louis"]
[Date "2024.10.21"]
[Round "9.2"]
[White "Robson, Ray"]
[Black "So, Wesley"]
[Result "1/2-1/2"]
[ECO "D33"]
[WhiteElo "2693"]
[BlackElo "2751"]
[Annotator "RC"]
[PlyCount "188"]
[EventDate "2024.10.09"]
[EventType "tourn"]
[EventCountry "USA"]
[SourceTitle "playchess.com"]
[Source "ChessBase"]
[SourceQuality "1"]
[TimeControl "40/5400+30:1800+30"]

1. d4 {[%emt 0:00:24]} d5 {[%emt 0:00:56]} 2. c4 {[%emt 0:00:22]} e6 {[%emt 0:00:08]} 3. Nc3 {[%emt 0:00:34]} c5 {[%emt 0:00:21]} 4. cxd5 {[%emt 0:02:41]} exd5 {[%emt 0:01:46]} 5. Nf3 {[%emt 0:02:59]} Nc6 {[%emt 0:00:03]} 6. g3 {[%emt 0:03:45]} Nf6 {[%emt 0:00:07]} 7. Bg2 {[%emt 0:07:42]} cxd4 {[%emt 0:00:31]} 8. Nxd4 {[%emt 0:00:18]} Bc5 {[%emt 0:00:05]} 9. Nb3 {[%emt 0:04:04]} Bb6 {[%emt 0:00:06]} 10. O-O {[%emt 0:00:53]} d4 {[%emt 0:00:07]} 11. Na4 {[%emt 0:00:25]} O-O {[%emt 0:00:06]} 12. Bg5 {[%emt 0:00:58]} h6 {[%emt 0:00:07]} 13. Bxf6 {[%emt 0:00:55]} Qxf6 {[%emt 0:00:06]} 14. Nxb6 {[%emt 0:00:41]} axb6 {[%emt 0:00:07]} 15. Bxc6 {[%emt 0:00:40]} bxc6 {[%emt 0:00:06]} 16. Qxd4 {[%emt 0:00:22]} Rd8 {[%emt 0:00:07]} 17. Qxf6 {[%emt 0:03:45]} gxf6 {[%emt 0:00:05]} 18. Rfc1 {[%emt 0:23:13]} Be6 {[%emt 0:00:32]} 19. Kf1 {[%emt 0:01:17]} Ra4 {[%emt 0:00:50]} 20. Ke1 {[%emt 0:14:28]} Rda8 {[%emt 0:00:22]} 21. Rc3 {[%emt 0:00:35]} Rxa2 {[%emt 0:26:53]} 22. Rxa2 {[%emt 0:02:05]} Rxa2 {[%emt 0:00:03]} 23. Nc1 {[%emt 0:02:14]} Rxb2 {[%emt 0:00:05]} 24. Rxc6 {[%emt 0:00:06]} b5 {[%emt 0:07:30]} 25. Nd3 {[%emt 0:00:28]} Ra2 {[%emt 0:01:49]} 26. Rb6 {[%emt 0:10:20]} Bc4 {[%emt 0:00:55]} 27. Rxf6 {[%emt 0:01:49]} b4 {[%emt 0:01:01]} 28. Nxb4 {[%emt 0:13:11]} Rxe2+ {[%emt 0:01:02]} 29. Kd1 {[%emt 0:00:02]} Re4 {[%emt 0:01:30]} 30. Kd2 {[%emt 0:01:21]} Kg7 {[%emt 0:01:52]} 31. Rf3 {[%emt 0:01:14]} Be2 {[%emt 0:08:12]} 32. Rb3 {[%emt 0:00:13]} Bf1 {[%emt 0:09:46]} 33. Rb2 {[%emt 0:00:47]} h5 {[%emt 0:00:09]} 34. h4 {[%emt 0:02:07]} f5 {[%emt 0:15:00]} 35. Nc2 {[%emt 0:00:12]} f4 {[%emt 0:04:23]} 36. Rb4 {[%emt 0:00:36]} Re2+ {[%emt 0:00:32]} 37. Kd1 {[%emt 0:00:18]} Rxf2 {[%emt 0:02:34]} 38. Rxf4 {[%emt 0:00:15]} Rxf4 {[%emt 0:00:34]} 39. gxf4 {[%emt 0:00:03]} Kf6 {[%emt 0:00:20]} 40. Ne3 {[%emt 0:01:28]} Ba6 {[%emt 0:00:42]} 41. Kd2 {[%emt 0:04:23]} Bb7 {[%emt 0:01:14]} 42. Ke2 {[%emt 0:01:06]} Ba6+ {[%emt 0:00:18]} 43. Kf2 {[%emt 0:00:33]} Ke6 {[%emt 0:00:53]} 44. Kg3 {[%emt 0:00:19]} Bd3 {[%emt 0:01:09]} 45. Kf3 {[%emt 0:00:26]} Kd6 {[%emt 0:01:52]} 46. Nd1 {[%emt 0:02:01]} Ke6 {[%emt 0:00:19]} 47. Nf2 {[%emt 0:00:32]} Bb5 {[%emt 0:00:33]} 48. Nd1 {[%emt 0:01:27]} Bd3 {[%emt 0:01:28]} 49. Nc3 {[%emt 0:00:08]} Kf5 {[%emt 0:00:35]} 50. Kg3 {[%emt 0:00:17]} Bc4 {[%emt 0:00:46]} 51. Nb1 {[%emt 0:00:13]} Bd3 {[%emt 0:02:12]} 52. Nd2 {[%emt 0:00:07]} Be2 {[%emt 0:00:41]} 53. Nb3 {[%emt 0:00:10]} Ke4 {[%emt 0:00:23]} 54. Nd2+ {[%emt 0:00:17]} Kf5 {[%emt 0:00:04]} 55. Nf3 {[%emt 0:00:08]} Ba6 {[%emt 0:00:53]} 56. Nd4+ {[%emt 0:00:41]} Ke4 {[%emt 0:00:53]} 57. Ne6 {[%emt 0:00:39]} Bc4 {[%emt 0:00:39]} 58. Nf8 {[%emt 0:01:47]} Bd5 {[%emt 0:01:54]} 59. Ng6 {[%emt 0:00:17]} Bf7 {[%emt 0:00:28]} 60. Ne5 {[%emt 0:00:08]} Bd5 {[%emt 0:00:20]} 61. Nf3 {[%emt 0:00:29]} Bb7 {[%emt 0:03:26]} 62. Nd2+ {[%emt 0:00:14]} Kf5 {[%emt 0:00:11]} 63. Nc4 {[%emt 0:00:09]} Bc6 {[%emt 0:00:23]} 64. Ne3+ {[%emt 0:01:16]} Ke4 {[%emt 0:00:40]} 65. Nc2 {[%emt 0:00:02]} Bb7 {[%emt 0:00:35]} 66. Ne1 {[%emt 0:00:09]} Kf5 {[%emt 0:00:48]} 67. Nd3 {[%emt 0:00:07]} Be4 {[%emt 0:00:36]} 68. Nf2 {[%emt 0:00:23]} Bc6 {[%emt 0:00:26]} 69. Nh3 {[%emt 0:00:11]} Bb7 {[%emt 0:00:09]} 70. Ng5 {[%emt 0:00:14]} Bd5 {[%emt 0:00:10]} 71. Nf3 {[%emt 0:00:09]} Ke4 {[%emt 0:00:22]} 72. Nd2+ {[%emt 0:01:51]} Kf5 {[%emt 0:00:25]} 73. Nb1 {[%emt 0:00:11]} Be4 {[%emt 0:00:15]} 74. Nc3 {[%emt 0:00:06]} Bc6 {[%emt 0:00:13]} 75. Ne2 {[%emt 0:00:23]} Ke4 {[%emt 0:00:26]} 76. f5 {[%emt 0:00:12]} Be8 {[%emt 0:00:11]} 77. f6 {[%emt 0:00:14]} Ke5 {[%emt 0:00:09]} 78. Ng1 {[%emt 0:00:19]} Kxf6 {[%emt 0:00:06]} 79. Kf4 {[%emt 0:00:02]} Bc6 {[%emt 0:00:07]} 80. Ne2 {[%emt 0:00:05]} Be8 {[%emt 0:00:04]} 81. Ng3 {[%emt 0:00:06]} Bg6 {[%emt 0:00:03]} 82. Ne4+ {[%emt 0:00:06]} Bxe4 {[%emt 0:00:05]} 83. Kxe4 {[%emt 0:00:03]} Ke6 {[%emt 0:00:03]} 84. Kf4 {[%emt 0:00:05]} Kf6 {[%emt 0:00:04]} 85. Ke4 {[%emt 0:00:04]} Ke6 {[%emt 0:00:03]} 86. Kf4 {[%emt 0:00:05]} Kf7 {[%emt 0:00:03]} 87. Kg5 {[%emt 0:00:07]} Ke6 {[%emt 0:00:03]} 88. Kxh5 {[%emt 0:00:06]} Kf5 {[%emt 0:00:04]} 89. Kh6 {[%emt 0:00:04]} Kf6 {[%emt 0:00:01]} 90. h5 {[%emt 0:00:11]} Kf7 {[%emt 0:00:02]} 91. Kh7 {[%emt 0:00:05]} Kf8 {[%emt 0:00:04]} 92. h6 {[%emt 0:00:03]} Kf7 {[%emt 0:00:03]} 93. Kh8 {[%emt 0:00:05]} Kf8 {[%emt 0:00:02]} 94. h7 {[%emt 0:00:21]} Kf7 {[%emt 0:00:05]} 1/2-1/2

[Event "USA Championship 2024"]
[Site "Saint Louis"]
[Date "2024.10.21"]
[Round "9.3"]
[White "Oparin, Grigoriy"]
[Black "Shankland, Sam"]
[Result "1/2-1/2"]
[ECO "B48"]
[WhiteElo "2662"]
[BlackElo "2677"]
[Annotator "TA"]
[PlyCount "33"]
[EventDate "2024.10.09"]
[EventType "tourn"]
[EventCountry "USA"]
[SourceTitle "playchess.com"]
[Source "ChessBase"]
[SourceQuality "1"]
[TimeControl "40/5400+30:1800+30"]

{[%evp 12,33,18,18,37,-5,20,0,0,-2,0,0,-18,-18,0,0,0,0,0,0,0,0,0,0]} 1. e4 {[%emt 0:00:03]} c5 {[%emt 0:00:10]} 2. Nf3 {[%emt 0:00:05]} e6 {[%emt 0:00:04]} 3. Nc3 {[%emt 0:00:19]} Nc6 {[%emt 0:00:19]} 4. a3 {[%emt 0:00:25]} a6 {[%emt 0:02:53]} 5. d4 {[%emt 0:00:50]} cxd4 {[%emt 0:00:11]} 6. Nxd4 {[%emt 0:00:05]} Qc7 {[%emt 0:00:42]} 7. Be3 {[%emt 0:00:53]} Be7 {[%emt 0:02:25]} 8. h4 {[%emt 0:17:30]} h5 {[%emt 0:04:36] The position is equal.} 9. Qd2 {[%emt 0:00:30]} Nf6 {[%emt 0:25:29]} 10. O-O-O {[%emt 0:06:13]} b5 {[%emt 0:11:18]} 11. Nxc6 {[%emt 0:00:14]} dxc6 {[%emt 0:10:44]} 12. e5 {[%emt 0:15:28]} Qxe5 {[%emt 0:02:22]} (12... Nd5 {simplifies} 13. Qd4 Nxe3 14. Qxe3 c5) 13. Bf4 {[%emt 0:12:59]} Qc5 {[%emt 0:00:00]} 14. Be3 {[%emt 0:00:17]} Qe5 {[%emt 0:00:00]} 15. Bf4 {[%emt 0:01:42]} Qc5 {[%emt 0:00:00]} 16. Be3 {[%emt 0:00:03]} Qe5 {[%emt 0:00:00]} 17. Bf4 {[%emt 0:00:12] An uneventful encounter.   Weighted Error Value: White=0.05 (flawless) /Black=0.05 (flawless) .  Inaccurate:     	White=1     	---        OK:         	White=5     	Black=5} 1/2-1/2

[Event "USA Championship 2024"]
[Site "Saint Louis"]
[Date "2024.10.21"]
[Round "9.4"]
[White "Caruana, Fabiano"]
[Black "Liang, Awonder"]
[Result "1/2-1/2"]
[ECO "C54"]
[WhiteElo "2796"]
[BlackElo "2677"]
[Annotator "TA"]
[PlyCount "92"]
[EventDate "2024.10.09"]
[EventType "tourn"]
[EventCountry "USA"]
[SourceTitle "playchess.com"]
[Source "ChessBase"]
[SourceQuality "1"]
[TimeControl "40/5400+30:1800+30"]

{[%evp 18,92,9,9,19,-17,-15,-14,-19,-10,-14,-12,-31,-24,-25,-11,-14,-7,0,0,0,-20,-12,-14,-13,-20,-12,-80,-75,-78,-77,-80,-62,-69,-63,-63,-15,-15,-16,-16,-14,-4,0,0,0,0,0,0,0,0,0,0,0,0,0,0,0,0,0,0,0,0,0,0,0,0,0,0,0,0,0,0,0,0,0,0,0]} 1. e4 {[%emt 0:00:03]} e5 {[%emt 0:00:41]} 2. Nf3 {[%emt 0:00:07]} Nc6 {[%emt 0:00:05]} 3. Bc4 {[%emt 0:00:03]} Bc5 {[%emt 0:00:09]} 4. O-O {[%emt 0:00:12]} Nf6 {[%emt 0:00:20]} 5. d3 {[%emt 0:00:14]} d6 {[%emt 0:00:02]} 6. c3 {[%emt 0:00:14]} Bb6 {[%emt 0:00:07]} 7. Nbd2 {[%emt 0:00:27]} O-O {[%emt 0:00:52]} 8. Bb3 {[%emt 0:00:37]} Ne7 {[%emt 0:00:38]} 9. Nc4 {[%emt 0:00:21]} Ng6 {[%emt 0:00:41]} 10. Re1 {[%emt 0:02:00]} Re8 {[%emt 0:09:58]} 11. d4 {[%emt 0:22:08]} exd4 {[%emt 0:09:45]} 12. Nxb6 {[%emt 0:01:03]} axb6 {[%emt 0:00:08]} 13. cxd4 {[%emt 0:09:59]} Nxe4 {[%emt 0:04:32]} ({Much weaker is} 13... Rxe4 $6 14. Bxf7+ Kh8 15. Rxe4 Nxe4 16. Qe2 $16) 14. Bxf7+ {[%emt 0:03:45]} Kxf7 {[%emt 0:00:06]} 15. Rxe4 $1 {[%emt 0:00:03]} Rxe4 {[%emt 0:00:23]} 16. Ng5+ {[%emt 0:00:13]} Kg8 {[%emt 0:00:09]} 17. Nxe4 {[%emt 0:00:04]} Qe7 {[%emt 0:00:50]} 18. Nc3 {[%emt 0:04:12]} Qf7 {[%emt 0:00:55]} 19. d5 {[%emt 0:06:16]} Bd7 {[%emt 0:05:05]} 20. Qd4 {[%emt 0:02:49]} Qf5 {[%emt 0:00:12]} 21. Be3 {[%emt 0:06:17]} Ne5 {[%emt 0:02:29]} 22. Qe4 {[%emt 0:15:57]} (22. b3 $11) 22... Qxe4 $17 {[%emt 0:03:33]} 23. Nxe4 {[%emt 0:00:03]} Ra5 {[%emt 0:01:57]} 24. Nc3 {[%emt 0:00:17]} b5 {[%emt 0:00:41]} 25. b4 {[%emt 0:08:27]} Ra3 {[%emt 0:00:08]} 26. Bd2 {[%emt 0:00:26]} c5 {[%emt 0:04:19]} (26... Kf7 $15 {might be stronger.}) 27. dxc6 $1 $11 {[%emt 0:03:35] The position is equal.} bxc6 {[%emt 0:00:05]} 28. Ne4 $1 {[%emt 0:00:24]} Nc4 {[%emt 0:02:01]} 29. Bf4 {[%emt 0:00:18]} Rd3 {[%emt 0:08:14]} 30. f3 {[%emt 0:00:04]} Bf5 {[%emt 0:00:06]} 31. Ng3 {[%emt 0:01:31]} Bg6 {[%emt 0:00:44]} 32. a4 {[%emt 0:00:11]} bxa4 {[%emt 0:00:04]} 33. Rxa4 {[%emt 0:00:02]} Rd1+ {[%emt 0:03:52]} 34. Kf2 {[%emt 0:00:09]} Nb2 {[%emt 0:00:23]} 35. Ra8+ {[%emt 0:01:43]} Kf7 {[%emt 0:00:03]} 36. Ne4 {[%emt 0:00:58]} Bxe4 {[%emt 0:00:50]} 37. fxe4 {[%emt 0:00:08][%mdl 4096] Endgame. KRB-KRN} Rd4 {[%emt 0:00:47]} 38. Rc8 {[%emt 0:06:08]} Rxb4 {[%emt 0:00:54]} 39. Bxd6 {[%emt 0:00:54]} Rxe4 {[%emt 0:00:05]} 40. Rxc6 {[%emt 0:00:06]} Nd3+ {[%emt 0:00:10]} 41. Kf3 {[%emt 0:30:07]} Ne5+ {[%emt 0:30:09]} 42. Bxe5 {[%emt 0:00:11]} Rxe5 {[%emt 0:00:02]} 43. Kf4 {[%emt 0:00:08]} Re2 {[%emt 0:00:02]} 44. Kf3 {[%emt 0:00:03]} Re5 {[%emt 0:00:04]} 45. Kf4 {[%emt 0:00:01]} Re2 {[%emt 0:00:04]} 46. Kf3 {[%emt 0:00:03]} Re5 {[%emt 0:00:04] Weighted Error Value: White=0.06 (flawless) /Black=0.03 (flawless) .  Mistake:       	White=1     	Black=1      Inaccurate:     	White=1     	---        OK:         	White=16    	Black=13     Best:        	White=3     	Black=3      Strong:       	White=3     	---} 1/2-1/2

[Event "USA Championship 2024"]
[Site "Saint Louis"]
[Date "2024.10.21"]
[Round "9.5"]
[White "Mishra, Abhimanyu"]
[Black "Aronian, Levon"]
[Result "1/2-1/2"]
[ECO "E48"]
[WhiteElo "2630"]
[BlackElo "2738"]
[Annotator "TA"]
[PlyCount "80"]
[EventDate "2024.10.09"]
[EventType "tourn"]
[EventCountry "USA"]
[SourceTitle "playchess.com"]
[Source "ChessBase"]
[SourceQuality "1"]
[TimeControl "40/5400+30:1800+30"]

{[%evp 11,80,7,8,0,-3,-15,0,0,0,-37,-8,-16,-17,-30,-24,-37,-16,-20,-12,-16,-21,-19,0,-20,0,0,0,0,0,-5,0,-11,-1,0,-8,-15,0,-19,2,0,0,0,0,0,0,0,4,0,0,0,0,0,0,0,0,0,0,0,0,0,0,0,0,0,0,0,0,0,0,0,0]} 1. d4 {[%emt 0:00:01]} Nf6 {[%emt 0:00:07]} 2. c4 {[%emt 0:00:04]} e6 {[%emt 0:00:04]} 3. Nc3 {[%emt 0:00:11]} Bb4 {[%emt 0:00:08]} 4. e3 {[%emt 0:00:08]} O-O {[%emt 0:00:23]} 5. Bd3 {[%emt 0:00:16]} d5 {[%emt 0:00:19]} 6. cxd5 {[%emt 0:00:53]} exd5 {[%emt 0:00:08]} 7. a3 {[%emt 0:00:11]} Bd6 {[%emt 0:00:16]} 8. Qc2 {[%emt 0:00:12]} b6 {[%emt 0:01:04]} 9. b4 {[%emt 0:03:02]} c6 {[%emt 0:04:30]} 10. Nge2 {[%emt 0:04:02]} a5 {[%emt 0:01:59]} 11. bxa5 {[%emt 0:10:49]} Rxa5 {[%emt 0:00:13]} 12. O-O {[%emt 0:01:35]} c5 {[%emt 0:07:39]} 13. Bb5 {[%emt 0:09:08] Verhindert Nc6.} Na6 {[%emt 0:14:25]} 14. Bd2 {[%emt 0:03:53] Die Stellung ist ausgeglichen.} Nc7 {[%emt 0:04:51]} 15. a4 {[%emt 0:08:09]} Ra8 {[%emt 0:01:00]} 16. f3 {[%emt 0:02:44]} Nxb5 {[%emt 0:00:52]} 17. Nxb5 {[%emt 0:00:21]} Ba6 {[%emt 0:01:41]} 18. Rfb1 {[%emt 0:06:28]} Be7 {[%emt 0:02:07]} 19. a5 {[%emt 0:08:00]} Qd7 {[%emt 0:02:32]} 20. Nec3 {[%emt 0:03:11]} bxa5 {[%emt 0:03:32]} 21. Rxa5 {[%emt 0:01:43]} cxd4 {[%emt 0:00:21]} 22. exd4 {[%emt 0:00:27]} (22. Nxd4 $2 {ist das falsche Schlagen.} Bd3 $19) 22... Qc6 {[%emt 0:02:25]} 23. Rba1 {[%emt 0:05:01]} h6 {[%emt 0:00:44]} 24. Qb3 {[%emt 0:01:55]} Bxb5 {[%emt 0:03:53]} 25. Qxb5 {[%emt 0:02:58]} Qxb5 {[%emt 0:01:15]} 26. Nxb5 {[%emt 0:00:01]} Rxa5 {[%emt 0:00:34]} 27. Rxa5 {[%emt 0:00:15]} Rb8 {[%emt 0:00:07]} 28. Bf4 {[%emt 0:01:26]} Rb7 {[%emt 0:02:58]} 29. Ra7 {[%emt 0:01:46]} Rxa7 {[%emt 0:00:22]} 30. Nxa7 $11 {[%emt 0:00:02][%mdl 4096] Endspiel. KBN-KBN} Nd7 {[%emt 0:00:24]} 31. Nb5 {[%emt 0:00:53]} Nf8 {[%emt 0:04:22]} 32. Nc7 {[%emt 0:00:50]} Bf6 {[%emt 0:00:19]} 33. Be3 {[%emt 0:00:23]} Ne6 {[%emt 0:00:06]} 34. Nxd5 {[%emt 0:00:07]} Bxd4 {[%emt 0:00:04]} 35. Bxd4 {[%emt 0:00:07]} Nxd4 {[%emt 0:00:03] KN-KN} 36. Kf2 {[%emt 0:00:10]} Nf5 {[%emt 0:00:43]} 37. Ne3 {[%emt 0:00:13]} Nd4 {[%emt 0:00:06]} 38. Nd5 {[%emt 0:00:10]} Nf5 {[%emt 0:00:04]} 39. Ne3 {[%emt 0:00:04]} Nd4 {[%emt 0:00:04]} 40. Nd5 {[%emt 0:00:05]} Nf5 {[%emt 0:00:23] Hier war wenig los.   Gewichteter Fehlerwert: Weiß=0.03 (makellos) /Schwarz=0.05 (makellos) .  Ungenau:       	Weiß=1     	Schwarz=1     OK:         	Weiß=11    	Schwarz=15    Bester:       	---       	Schwarz=2} 1/2-1/2